fUST/lending_fUST_20250225
["ID","MTS","AMOUNT","RATE_DAILY","PERIOD"]
[354351915,1740439843289,-502.52088211,0.00013945,2]
[354351916,1740439843298,-509.94273618,0.00013945,2]
[354351917,1740439843307,-500.0,0.00013945,2]
[354351918,1740439843317,-926.35,0.00013945,2]
[354351919,1740439843326,-2109.41,0.00013945,2]
[354351920,1740439843335,-813.65,0.00013945,2]
[354351921,1740439843344,-500.0,0.00013945,2]
[354351922,1740439843354,-500.0,0.00013945,2]
[354351923,1740439843363,-2207.91,0.00013945,2]
[354351924,1740439843372,-500.0,0.00013945,2]
[354351925,1740439843381,-500.0,0.00013945,2]
[354351926,1740439843391,-14925.89,0.00013945,2]
[354351927,1740439843400,-500.0,0.00013945,2]
[354351928,1740439843410,-1307.62,0.00013945,2]
[354351929,1740439843420,-674.09,0.00013945,2]
[354351931,1740439843433,-500.0,0.00013945,2]
[354351932,1740439843444,-120.96005361,0.00013945,2]
[354351933,1740439843573,-379.03994639,0.00013945,2]
[354351934,1740439843583,-100.4279697,0.00013945,2]
[354351935,1740439843597,-309.46270355,0.00013945,2]
[354351936,1740439843626,-500.0,0.00013698,2]
[354351937,1740439843634,-86.9874673,0.00013945,2]
[354351938,1740439844183,-500.0,0.00013698,2]
[354351939,1740439844193,-500.0,0.00013698,2]
[354351940,1740439844203,-500.0,0.0001378,2]
[354351941,1740439844213,-500.0,0.0001378,2]
[354351942,1740439844222,-500.0,0.00013863,2]
[354351943,1740439844232,-500.0,0.00013863,2]
[354351944,1740439844242,-500.0,0.00013863,2]
[354351945,1740439844251,-1558.02976408,0.00013945,2]
[354351946,1740439844269,-4071.86209537,0.00013945,2]
[354351947,1740439844278,-500.0,0.00013945,2]
[354351948,1740439844288,-930.4,0.00013945,2]
[354351949,1740439844297,-500.0,0.00013945,2]
[354351950,1740439844306,-500.0,0.00013945,2]
[354351951,1740439844315,-568.82,0.00013945,2]
[354351952,1740439844325,-17742.98,0.00013945,2]
[354351953,1740439844334,-794.84,0.00013945,2]
[354351954,1740439844343,-1574.8,0.00013945,2]
[354351955,1740439844353,-500.0,0.00013945,2]
[354351956,1740439844362,-1100.35,0.00013945,2]
[354351957,1740439844371,-1720.52,0.00013945,2]
[354351958,1740439844380,-500.0,0.00013945,2]
[354351959,1740439844390,-500.0,0.00013945,2]
[354351960,1740439844400,-500.0,0.00013945,2]
[354351961,1740439844409,-500.0,0.00013945,2]
[354351962,1740439844419,-500.0,0.00013945,2]
[354351963,1740439844433,-500.0,0.00013945,2]
[354351964,1740439844443,-500.0,0.00013945,2]
[354351965,1740439844452,-500.0,0.00013945,2]
[354351966,1740439844462,-500.0,0.00013945,2]
[354351967,1740439844473,-500.0,0.00013945,2]
[354351968,1740439844482,-500.0,0.00013945,2]
[354351969,1740439844491,-500.0,0.00013945,2]
[354351970,1740439844501,-500.0,0.00013945,2]
[354351971,1740439844512,-500.0,0.00013945,2]
[354351972,1740439844522,-500.0,0.00013945,2]
[354351973,1740439844532,-3282.59,0.00013945,2]
[354351974,1740439844542,-1167.82,0.00013945,2]
[354351975,1740439844552,-4125.19,0.00013945,2]
[354351976,1740439844561,-500.0,0.00013945,2]
[354351977,1740439844571,-500.0,0.00013945,2]
[354351978,1740439844580,-500.0,0.00013945,2]
[354351979,1740439844589,-1000.0,0.00013945,2]
[354351980,1740439844599,-2231.77,0.00013945,2]
[354351981,1740439844608,-1547.34,0.00013945,2]
[354351982,1740439844617,-500.0,0.00013945,2]
[354351983,1740439844627,-2353.71,0.00013945,2]
[354351984,1740439844636,-1622.49,0.00013945,2]
[354351985,1740439844646,-500.0,0.00013945,2]
[354351986,1740439844655,-649.82,0.00013945,2]
[354351987,1740439844664,-500.0,0.00013945,2]
[354351988,1740439844674,-500.0,0.00013945,2]
[354351989,1740439844683,-9642.36,0.00013945,2]
[354351990,1740439844693,-2968.68,0.00013945,2]
[354351991,1740439844703,-500.0,0.00013945,2]
[354351992,1740439844712,-500.0,0.00013945,2]
[354351993,1740439844721,-500.0,0.00013945,2]
[354351994,1740439844730,-1131.76,0.00013945,2]
[354351995,1740439844740,-3767.61,0.00013945,2]
[354351996,1740439844749,-500.0,0.00013945,2]
[354351997,1740439844758,-500.0,0.00013945,2]
[354351998,1740439844767,-500.0,0.00013945,2]
[354351999,1740439844776,-151.0,0.00014,2]
[354352000,1740439844786,-152.27712941,0.00014009,2]
[354352001,1740439844795,-152.27712941,0.00014009,2]
[354352002,1740439844804,-152.27712941,0.00014009,2]
[354352003,1740439844813,-152.27712941,0.00014009,2]
[354352004,1740439844822,-152.27712941,0.00014009,2]
[354352005,1740439844832,-152.27712941,0.00014009,2]
[354352006,1740439844841,-152.27712941,0.00014009,2]
[354352007,1740439844850,-152.27712941,0.00014009,2]
[354352008,1740439844860,-152.27712941,0.00014009,2]
[354352009,1740439844869,-152.27712941,0.00014009,2]
[354352010,1740439844878,-152.27712941,0.00014009,2]
[354352011,1740439844888,-152.27712941,0.00014009,2]
[354352012,1740439844897,-152.27712941,0.00014009,2]
[354352013,1740439844907,-152.27712941,0.00014009,2]
[354352014,1740439844917,-152.27712941,0.00014009,2]
[354352015,1740439844926,-152.27712941,0.00014009,2]
[354352016,1740439844936,-152.27712941,0.00014009,2]
[354352017,1740439844946,-152.27,0.00014009,2]
[354352018,1740439844956,-500.0,0.00014027,2]
[354352019,1740439844965,-500.0,0.00014027,2]
[354352020,1740439844974,-500.0,0.00014027,2]
[354352021,1740439844983,-500.0,0.00014027,2]
[354352022,1740439844992,-500.0,0.00014027,2]
[354352023,1740439845001,-500.0,0.00014027,2]
[354352024,1740439845010,-500.0,0.00014027,2]
[354352025,1740439845020,-490.51984356,0.00014027,2]
[354352026,1740439845029,-500.0,0.00014027,2]
[354352027,1740439845038,-500.0,0.00014027,2]
[354352028,1740439845048,-500.0,0.00014027,2]
[354352029,1740439845057,-369.48109363,0.00014027,2]
[354352030,1740439845067,-500.0,0.00014027,2]
[354352031,1740439845076,-500.0,0.00014027,2]
[354352032,1740439845086,-631.76713462,0.00014027,2]
[354352033,1740439845096,-500.0,0.00014027,2]
[354352034,1740439845105,-500.0,0.00014027,2]
[354352035,1740439845115,-502.24,0.00014027,2]
[354352036,1740439845124,-500.0,0.00014027,2]
[354352037,1740439845134,-550.97,0.00014027,2]
[354352038,1740439845143,-500.0,0.00014027,2]
[354352039,1740439845160,-500.0,0.00014027,2]
[354352040,1740439845176,-500.0,0.00014027,2]
[354352041,1740439845192,-500.0,0.00014027,2]
[354352042,1740439845205,-500.0,0.00014027,2]
[354352043,1740439845220,-500.0,0.00014027,2]
[354352044,1740439845234,-500.0,0.00014027,2]
[354352045,1740439845249,-500.0,0.00014027,2]
[354352046,1740439845265,-500.0,0.00014027,2]
[354352047,1740439845279,-500.0,0.00014027,2]
[354352049,1740439845295,-500.0,0.00014027,2]
[354352051,1740439845311,-500.0,0.00014027,2]
[354352052,1740439845325,-500.0,0.00014027,2]
[354352054,1740439845338,-500.0,0.00014027,2]
[354352056,1740439845352,-500.0,0.00014027,2]
[354352057,1740439845366,-154.04,0.00014027,2]
[354352058,1740439845382,-500.0,0.00014027,2]
[354352059,1740439845395,-1044.38,0.00014027,2]
[354352060,1740439845407,-500.0,0.00014027,2]
[354352061,1740439845419,-500.0,0.00014027,2]
[354352062,1740439845434,-1560.73,0.00014027,2]
[354352063,1740439845447,-500.0,0.00014027,2]
[354352064,1740439845462,-1419.86,0.00014027,2]
[354352065,1740439845477,-500.0,0.00014027,2]
[354352066,1740439845491,-1146.58,0.00014027,2]
[354352067,1740439845507,-500.0,0.00014027,2]
[354352069,1740439845523,-205.76,0.00014027,2]
[354352071,1740439845536,-500.0,0.00014027,2]
[354352074,1740439845548,-500.0,0.00014027,2]
[354352076,1740439845559,-500.0,0.00014027,2]
[354352078,1740439845571,-500.0,0.00014027,2]
[354352080,1740439845585,-500.0,0.00014027,2]
[354352082,1740439845600,-500.0,0.00014027,2]
[354352083,1740439845614,-500.0,0.00014027,2]
[354352084,1740439845625,-500.0,0.00014027,2]
[354352085,1740439845638,-853.98,0.00014027,2]
[354352086,1740439845650,-1614.85,0.00014027,2]
[354352087,1740439845665,-500.0,0.00014027,2]
[354352088,1740439845676,-500.0,0.00014027,2]
[354352090,1740439845687,-500.0,0.00014027,2]
[354352091,1740439845700,-500.0,0.00014027,2]
[354352092,1740439845712,-247.52191746,0.00014027,2]
[354352093,1740439845724,-500.0,0.00014027,2]
[354352094,1740439845737,-500.0,0.00014027,2]
[354352096,1740439845750,-500.0,0.00014027,2]
[354352097,1740439845763,-517.45,0.00014027,2]
[354352098,1740439845775,-9318.21,0.00014027,2]
[354352099,1740439845787,-500.0,0.00014027,2]
[354352100,1740439845800,-500.0,0.00014027,2]
[354352101,1740439845812,-500.0,0.00014027,2]
[354352102,1740439845824,-500.0,0.00014027,2]
[354352103,1740439845837,-46717.32,0.00014027,2]
[354352104,1740439845850,-500.0,0.00014027,2]
[354352105,1740439845862,-500.0,0.00014027,2]
[354352106,1740439845874,-500.0,0.00014027,2]
[354352107,1740439845887,-2744.75,0.00014027,2]
[354352108,1740439845899,-500.0,0.00014027,2]
[354352109,1740439845912,-4421.62,0.00014027,2]
[354352110,1740439845924,-500.0,0.00014027,2]
[354352111,1740439845937,-926.35,0.00014027,2]
[354352112,1740439845950,-2109.41,0.00014027,2]
[354352113,1740439845962,-813.65,0.00014027,2]
[354352114,1740439845975,-500.0,0.00014027,2]
[354352115,1740439845987,-2207.91,0.00014027,2]
[354352117,1740439846000,-500.0,0.00014027,2]
[354352118,1740439846013,-14925.89,0.00014027,2]
[354352119,1740439846025,-1307.62,0.00014027,2]
[354352120,1740439846037,-674.09,0.00014027,2]
[354352121,1740439846049,-506.95559335,0.00014027,2]
[354352122,1740439846061,-500.0,0.00014027,2]
[354352123,1740439846074,-6126.77,0.00014027,2]
[354352124,1740439846086,-500.0,0.00014027,2]
[354352125,1740439846098,-930.4,0.00014027,2]
[354352126,1740439846112,-500.0,0.00014027,2]
[354352127,1740439846124,-500.0,0.00014027,2]
[354352128,1740439846136,-568.82,0.00014027,2]
[354352129,1740439846149,-17742.98,0.00014027,2]
[354352130,1740439846161,-794.84,0.00014027,2]
[354352131,1740439846172,-1574.8,0.00014027,2]
[354352132,1740439846181,-500.0,0.00014027,2]
[354352133,1740439846192,-1100.35,0.00014027,2]
[354352134,1740439846202,-1720.52,0.00014027,2]
[354352135,1740439846211,-500.0,0.00014027,2]
[354352136,1740439846221,-500.0,0.00014027,2]
[354352137,1740439846230,-500.0,0.00014027,2]
[354352138,1740439846239,-500.0,0.00014027,2]
[354352139,1740439846249,-500.0,0.00014027,2]
[354352140,1740439846259,-500.0,0.00014027,2]
[354352141,1740439846268,-500.0,0.00014027,2]
[354352142,1740439846277,-500.0,0.00014027,2]
[354352143,1740439846287,-500.0,0.00014027,2]
[354352144,1740439846296,-500.0,0.00014027,2]
[354352145,1740439846306,-500.0,0.00014027,2]
[354352146,1740439846315,-500.0,0.00014027,2]
[354352147,1740439846325,-500.0,0.00014027,2]
[354352148,1740439846334,-500.0,0.00014027,2]
[354352149,1740439846344,-500.0,0.00014027,2]
[354352150,1740439846353,-3282.59,0.00014027,2]
[354352151,1740439846363,-1167.82,0.00014027,2]
[354352152,1740439846372,-4125.19,0.00014027,2]
[354352153,1740439846382,-500.0,0.00014027,2]
[354352154,1740439846392,-500.0,0.00014027,2]
[354352155,1740439846402,-1002.82834528,0.00014027,2]
[354352156,1740439846412,-2231.77,0.00014027,2]
[354352157,1740439846422,-1547.34,0.00014027,2]
[354352158,1740439846434,-500.0,0.00014027,2]
[354352159,1740439846447,-2353.71,0.00014027,2]
[354352160,1740439846733,-1622.49,0.00014027,2]
[354352161,1740439846747,-500.0,0.00014027,2]
[354352162,1740439846757,-649.82,0.00014027,2]
[354352163,1740439846767,-500.0,0.00014027,2]
[354352164,1740439846776,-181.94,0.00014027,2]
[354352165,1740439846785,-9642.36,0.00014027,2]
[354352166,1740439846795,-2968.68,0.00014027,2]
[354352167,1740439846804,-500.0,0.00014027,2]
[354352168,1740439846813,-500.0,0.00014027,2]
[354352169,1740439846823,-500.0,0.00014027,2]
[354352170,1740439846832,-1131.76,0.00014027,2]
[354352171,1740439846842,-3767.61,0.00014027,2]
[354352172,1740439846851,-500.0,0.00014027,2]
[354352173,1740439846861,-507.0895533,0.00014027,2]
[354352174,1740439846871,-500.0,0.00014027,2]
[354352175,1740439846880,-151.0,0.000141,2]
[354352176,1740439846890,-151.0,0.000141,2]
[354352177,1740439846899,-500.0,0.00014109,2]
[354352178,1740439846909,-500.0,0.00014109,2]
[354352179,1740439846918,-500.0,0.00014109,2]
[354352180,1740439846928,-500.0,0.00014109,2]
[354352181,1740439846937,-500.0,0.00014109,2]
[354352182,1740439846948,-500.0,0.00014109,2]
[354352183,1740439846958,-500.0,0.00014109,2]
[354352184,1740439846968,-500.0,0.00014109,2]
[354352185,1740439846977,-500.0,0.00014109,2]
[354352186,1740439846986,-500.0,0.00014109,2]
[354352187,1740439846996,-500.0,0.00014109,2]
[354352188,1740439847006,-268.77624498,0.00014109,2]
[354352189,1740439847015,-502.24,0.00014109,2]
[354352190,1740439847025,-500.0,0.00014109,2]
[354352191,1740439847034,-550.97,0.00014109,2]
[354352192,1740439847043,-500.0,0.00014109,2]
[354352193,1740439847053,-500.0,0.00014109,2]
[354352194,1740439847063,-500.0,0.00014109,2]
[354352195,1740439847072,-500.0,0.00014109,2]
[354352196,1740439847082,-500.0,0.00014109,2]
[354352197,1740439847091,-500.0,0.00014109,2]
[354352198,1740439847101,-500.0,0.00014109,2]
[354352199,1740439847110,-500.0,0.00014109,2]
[354352200,1740439847120,-500.0,0.00014109,2]
[354352201,1740439847129,-500.0,0.00014109,2]
[354352202,1740439847139,-500.0,0.00014109,2]
[354352203,1740439847149,-500.0,0.00014109,2]
[354352204,1740439847158,-500.0,0.00014109,2]
[354352205,1740439847168,-500.0,0.00014109,2]
[354352206,1740439847177,-500.0,0.00014109,2]
[354352207,1740439847186,-500.0,0.00014109,2]
[354352208,1740439847197,-1044.38,0.00014109,2]
[354352209,1740439847207,-500.0,0.00014109,2]
[354352210,1740439847216,-500.0,0.00014109,2]
[354352211,1740439847226,-1560.73,0.00014109,2]
[354352212,1740439847235,-500.0,0.00014109,2]
[354352213,1740439847245,-1419.86,0.00014109,2]
[354352214,1740439847254,-500.0,0.00014109,2]
[354352215,1740439847265,-1146.58,0.00014109,2]
[354352216,1740439847275,-500.0,0.00014109,2]
[354352217,1740439847284,-500.0,0.00014109,2]
[354352218,1740439847294,-500.0,0.00014109,2]
[354352219,1740439847304,-500.0,0.00014109,2]
[354352220,1740439847314,-500.0,0.00014109,2]
[354352221,1740439847323,-500.0,0.00014109,2]
[354352222,1740439847332,-500.0,0.00014109,2]
[354352223,1740439847342,-500.0,0.00014109,2]
[354352224,1740439847351,-500.0,0.00014109,2]
[354352225,1740439847361,-853.98,0.00014109,2]
[354352226,1740439847371,-1614.85,0.00014109,2]
[354352227,1740439847381,-500.0,0.00014109,2]
[354352228,1740439847390,-500.0,0.00014109,2]
[354352229,1740439847400,-500.0,0.00014109,2]
[354352230,1740439847409,-500.0,0.00014109,2]
[354352231,1740439847419,-500.0,0.00014109,2]
[354352232,1740439847429,-500.0,0.00014109,2]
[354352233,1740439847443,-500.0,0.00014109,2]
[354352234,1740439847452,-517.45,0.00014109,2]
[354352235,1740439847461,-9318.21,0.00014109,2]
[354352236,1740439847471,-500.0,0.00014109,2]
[354352237,1740439847481,-500.0,0.00014109,2]
[354352238,1740439847491,-500.0,0.00014109,2]
[354352239,1740439847500,-500.0,0.00014109,2]
[354352240,1740439847511,-46717.32,0.00014109,2]
[354352241,1740439847520,-500.0,0.00014109,2]
[354352242,1740439847530,-500.0,0.00014109,2]
[354352243,1740439847539,-500.0,0.00014109,2]
[354352244,1740439847549,-2744.75,0.00014109,2]
[354352245,1740439847558,-634.53215932,0.00014109,2]
[354352246,1740439847568,-4421.62,0.00014109,2]
[354352247,1740439847578,-500.0,0.00014109,2]
[354352248,1740439847587,-926.35,0.00014109,2]
[354352249,1740439847596,-2109.41,0.00014109,2]
[354352250,1740439847605,-813.65,0.00014109,2]
[354352251,1740439847615,-500.0,0.00014109,2]
[354352252,1740439847624,-2207.91,0.00014109,2]
[354352253,1740439847634,-500.0,0.00014109,2]
[354352254,1740439847644,-14925.89,0.00014109,2]
[354352255,1740439847653,-1307.62,0.00014109,2]
[354352256,1740439847663,-674.09,0.00014109,2]
[354352257,1740439847672,-500.0,0.00014109,2]
[354352258,1740439847682,-6126.77,0.00014109,2]
[354352259,1740439847691,-500.0,0.00014109,2]
[354352260,1740439847701,-930.4,0.00014109,2]
[354352261,1740439847710,-500.0,0.00014109,2]
[354352262,1740439847720,-500.0,0.00014109,2]
[354352263,1740439847729,-568.82,0.00014109,2]
[354352264,1740439847738,-17742.98,0.00014109,2]
[354352265,1740439847748,-794.84,0.00014109,2]
[354352266,1740439847757,-500.0,0.00014109,2]
[354352267,1740439847767,-1574.8,0.00014109,2]
[354352268,1740439847776,-1100.35,0.00014109,2]
[354352269,1740439847785,-1720.52,0.00014109,2]
[354352270,1740439847794,-500.0,0.00014109,2]
[354352271,1740439847804,-500.0,0.00014109,2]
[354352272,1740439847813,-570.80636916,0.00014109,2]
[354352273,1740439847822,-500.0,0.00014109,2]
[354352274,1740439847832,-500.0,0.00014109,2]
[354352275,1740439847841,-500.0,0.00014109,2]
[354352276,1740439847851,-500.0,0.00014109,2]
[354352277,1740439847860,-500.0,0.00014109,2]
[354352278,1740439847869,-500.0,0.00014109,2]
[354352279,1740439847879,-500.0,0.00014109,2]
[354352280,1740439847888,-500.0,0.00014109,2]
[354352281,1740439847898,-500.0,0.00014109,2]
[354352282,1740439847907,-500.0,0.00014109,2]
[354352283,1740439847917,-386.47680053,0.00014109,2]
[354352284,1740439847926,-3282.59,0.00014109,2]
[354352285,1740439847940,-1167.82,0.00014109,2]
[354352286,1740439847951,-4125.19,0.00014109,2]
[354352287,1740439847960,-155.42786966,0.00014109,2]
[354352288,1740439847970,-441.83645634,0.00014109,2]
[354352289,1740439847979,-2231.77,0.00014109,2]
[354352290,1740439847988,-1547.34,0.00014109,2]
[354352291,1740439847997,-500.0,0.00014109,2]
[354352292,1740439848007,-2353.71,0.00014109,2]
[354352293,1740439848016,-1622.49,0.00014109,2]
[354352294,1740439848026,-500.0,0.00014109,2]
[354352295,1740439848035,-649.82,0.00014109,2]
[354352296,1740439848045,-500.0,0.00014109,2]
[354352297,1740439848054,-9642.36,0.00014109,2]
[354352298,1740439848067,-2968.68,0.00014109,2]
[354352299,1740439848077,-500.0,0.00014109,2]
[354352300,1740439848087,-500.0,0.00014109,2]
[354352301,1740439848096,-500.0,0.00014109,2]
[354352302,1740439848107,-1131.76,0.00014109,2]
[354352303,1740439848117,-3767.61,0.00014109,2]
[354352304,1740439848126,-500.0,0.00014109,2]
[354352305,1740439848136,-640.89,0.00014109,2]
[354352306,1740439848145,-2282.70078889,0.00014123,2]
[354352307,1740439848155,-500.0,0.00014173,2]
[354352308,1740439848165,-500.0,0.00014173,2]
[354352309,1740439848175,-168.22590784,0.00014173,2]
[354352310,1740439848184,-500.0,0.00014191,2]
[354352311,1740439848195,-500.0,0.00014191,2]
[354352312,1740439848204,-500.0,0.00014191,2]
[354352313,1740439848214,-500.0,0.00014191,2]
[354352314,1740439848223,-500.0,0.00014191,2]
[354352315,1740439848233,-500.0,0.00014191,2]
[354352316,1740439848243,-500.0,0.00014191,2]
[354352317,1740439848252,-500.0,0.00014191,2]
[354352318,1740439848262,-500.0,0.00014191,2]
[354352319,1740439848271,-500.0,0.00014191,2]
[354352320,1740439848280,-502.24,0.00014191,2]
[354352321,1740439848290,-217.98,0.00014191,2]
[354352322,1740439848300,-550.97,0.00014191,2]
[354352323,1740439848310,-500.0,0.00014191,2]
[354352324,1740439848319,-200.0,0.00014191,2]
[354352325,1740439848329,-500.0,0.00014191,2]
[354352326,1740439848341,-500.0,0.00014191,2]
[354352327,1740439848351,-500.0,0.00014191,2]
[354352328,1740439848361,-511.2091456,0.00014191,2]
[354352329,1740439848371,-500.0,0.00014191,2]
[354352330,1740439848381,-500.0,0.00014191,2]
[354352331,1740439848390,-500.0,0.00014191,2]
[354352332,1740439848399,-500.0,0.00014191,2]
[354352333,1740439848409,-500.0,0.00014191,2]
[354352334,1740439848418,-500.0,0.00014191,2]
[354352335,1740439848431,-305.26121801,0.00014191,2]
[354352336,1740439848440,-500.0,0.00014191,2]
[354352337,1740439848450,-500.0,0.00014191,2]
[354352338,1740439848460,-500.0,0.00014191,2]
[354352339,1740439848470,-1044.38,0.00014191,2]
[354352340,1740439848481,-500.0,0.00014191,2]
[354352341,1740439848490,-1560.73,0.00014191,2]
[354352342,1740439848500,-500.0,0.00014191,2]
[354352343,1740439848510,-1419.86,0.00014191,2]
[354352344,1740439848521,-500.0,0.00014191,2]
[354352345,1740439848531,-1146.58,0.00014191,2]
[354352346,1740439848540,-500.0,0.00014191,2]
[354352347,1740439848550,-500.0,0.00014191,2]
[354352348,1740439848560,-500.0,0.00014191,2]
[354352349,1740439848570,-500.0,0.00014191,2]
[354352350,1740439848580,-500.0,0.00014191,2]
[354352351,1740439848589,-500.0,0.00014191,2]
[354352352,1740439848599,-500.0,0.00014191,2]
[354352353,1740439848608,-500.0,0.00014191,2]
[354352354,1740439848619,-500.0,0.00014191,2]
[354352355,1740439848628,-853.98,0.00014191,2]
[354352356,1740439848638,-1614.85,0.00014191,2]
[354352357,1740439848648,-500.0,0.00014191,2]
[354352358,1740439848658,-500.0,0.00014191,2]
[354352359,1740439848668,-500.0,0.00014191,2]
[354352360,1740439848678,-500.0,0.00014191,2]
[354352361,1740439848688,-500.0,0.00014191,2]
[354352362,1740439848698,-500.0,0.00014191,2]
[354352363,1740439848708,-517.45,0.00014191,2]
[354352364,1740439848718,-9318.21,0.00014191,2]
[354352365,1740439848728,-500.0,0.00014191,2]
[354352366,1740439848738,-500.0,0.00014191,2]
[354352367,1740439848747,-500.0,0.00014191,2]
[354352368,1740439848757,-46717.32,0.00014191,2]
[354352369,1740439848767,-500.0,0.00014191,2]
[354352370,1740439848777,-530.9174586,0.00014191,2]
[354352371,1740439848787,-500.0,0.00014191,2]
[354352372,1740439848796,-2744.75,0.00014191,2]
[354352373,1740439848805,-4421.62,0.00014191,2]
[354352374,1740439848815,-500.0,0.00014191,2]
[354352375,1740439848824,-926.35,0.00014191,2]
[354352376,1740439848834,-2109.41,0.00014191,2]
[354352377,1740439848843,-813.65,0.00014191,2]
[354352378,1740439848854,-500.0,0.00014191,2]
[354352379,1740439848864,-2207.91,0.00014191,2]
[354352380,1740439848874,-341.33759118,0.00014191,2]
[354352381,1740439848885,-14925.89,0.00014191,2]
[354352382,1740439848894,-1307.62,0.00014191,2]
[354352383,1740439848904,-674.09,0.00014191,2]
[354352384,1740439848914,-500.0,0.00014191,2]
[354352385,1740439848924,-6126.77,0.00014191,2]
[354352386,1740439848934,-500.0,0.00014191,2]
[354352387,1740439848943,-930.4,0.00014191,2]
[354352388,1740439848953,-500.0,0.00014191,2]
[354352389,1740439848963,-500.0,0.00014191,2]
[354352390,1740439848973,-568.82,0.00014191,2]
[354352391,1740439848982,-17742.98,0.00014191,2]
[354352392,1740439848992,-794.84,0.00014191,2]
[354352393,1740439849001,-500.0,0.00014191,2]
[354352394,1740439849011,-1574.8,0.00014191,2]
[354352395,1740439849020,-1100.35,0.00014191,2]
[354352396,1740439849030,-1720.52,0.00014191,2]
[354352397,1740439849039,-500.0,0.00014191,2]
[354352398,1740439849049,-500.0,0.00014191,2]
[354352399,1740439849058,-500.0,0.00014191,2]
[354352400,1740439849068,-500.0,0.00014191,2]
[354352401,1740439849078,-500.0,0.00014191,2]
[354352402,1740439849087,-500.0,0.00014191,2]
[354352403,1740439849097,-500.0,0.00014191,2]
[354352404,1740439849106,-500.0,0.00014191,2]
[354352405,1740439849116,-500.0,0.00014191,2]
[354352406,1740439849125,-500.0,0.00014191,2]
[354352407,1740439849134,-500.0,0.00014191,2]
[354352408,1740439849143,-500.0,0.00014191,2]
[354352409,1740439849153,-3282.59,0.00014191,2]
[354352410,1740439849162,-1167.82,0.00014191,2]
[354352411,1740439849171,-4125.19,0.00014191,2]
[354352412,1740439849180,-2231.77,0.00014191,2]
[354352413,1740439849190,-1547.34,0.00014191,2]
[354352414,1740439849199,-500.0,0.00014191,2]
[354352415,1740439849209,-2353.71,0.00014191,2]
[354352416,1740439849219,-1622.49,0.00014191,2]
[354352417,1740439849228,-500.0,0.00014191,2]
[354352418,1740439849239,-649.82,0.00014191,2]
[354352419,1740439849249,-500.0,0.00014191,2]
[354352420,1740439849258,-9642.36,0.00014191,2]
[354352421,1740439849268,-2968.68,0.00014191,2]
[354352422,1740439849277,-500.0,0.00014191,2]
[354352423,1740439849286,-500.0,0.00014191,2]
[354352424,1740439849296,-500.0,0.00014191,2]
[354352425,1740439849305,-1131.76,0.00014191,2]
[354352426,1740439849315,-3767.61,0.00014191,2]
[354352427,1740439849324,-500.0,0.00014191,2]
[354352428,1740439849334,-151.0,0.000142,2]
[354352429,1740439849343,-500.0,0.00014221,2]
[354352430,1740439849352,-1002.47157931,0.00014221,2]